fUST/lending_fUST_20260221
["ID","MTS","AMOUNT","RATE_DAILY","PERIOD"]
[406274709,1771681851404,-504.73185356,0.00036164,16]
[406274710,1771681851414,-500.70837257,0.00036164,16]
[406274711,1771681851424,-511.04558499,0.00036164,16]
[406274712,1771681851433,-1000.0,0.00036164,2]
[406274713,1771681851443,-584.57523421,0.00036164,16]
[406274714,1771681851452,-504.66081119,0.00036164,16]
[406274715,1771681851464,-500.0,0.00036164,16]
[406274716,1771681851474,-500.76008684,0.00036164,16]
[406274717,1771681851484,-1729.05,0.00036164,16]
[406274718,1771681851493,-500.0,0.00036164,16]
[406274719,1771681851504,-212.26192029,0.00036164,16]
[406274720,1771681851513,-500.0,0.00036164,16]
[406274721,1771681851523,-576.41250735,0.00036164,16]
[406274722,1771681851534,-1107.06,0.00036164,16]
[406274723,1771681851544,-500.0,0.00036164,2]
[406274724,1771681851554,-500.0,0.00036164,16]
[406274725,1771681851564,-500.0,0.00036164,16]
[406274726,1771681851573,-500.0,0.00036164,16]
[406274727,1771681851582,-500.0,0.00036164,16]
[406274728,1771681851591,-500.0,0.00036164,16]
[406274729,1771681851600,-521.36576962,0.00036164,16]
[406274730,1771681851609,-509.75482192,0.00036164,16]
[406274731,1771681851618,-500.0,0.00036164,16]
[406274732,1771681851628,-521.07345415,0.00036164,16]
[406274733,1771681851637,-219.75683388,0.00036164,16]
[406274734,1771681851646,-500.0,0.00036164,16]
[406274735,1771681851655,-1504.3,0.00036164,7]
[406274736,1771681851664,-537.52165576,0.00036164,16]
[406274737,1771681851673,-500.0,0.00036164,16]
[406274738,1771681851682,-500.0,0.00036164,16]
[406274739,1771681851691,-500.0,0.00036164,16]
[406274740,1771681851701,-500.0,0.00036164,16]
[406274741,1771681851711,-500.0,0.00036164,16]
[406274742,1771681851722,-500.0,0.00036164,16]
[406274743,1771681851731,-992.89,0.00036164,16]
[406274744,1771681851743,-500.0,0.00036164,16]
[406274745,1771681851752,-641.11143724,0.00036164,16]
[406274746,1771681851760,-500.0,0.00036164,16]
[406274747,1771681851770,-500.0,0.00036164,16]
[406274748,1771681851779,-500.0,0.00036164,16]
[406274749,1771681851788,-500.0,0.00036164,16]
[406274750,1771681851796,-500.0,0.00036164,16]
[406274751,1771681851805,-4978.17,0.00036164,16]
[406274752,1771681851814,-152.82589,0.00036164,7]
[406274753,1771681851822,-605.2307692,0.00036164,16]
[406274754,1771681851831,-1924.96,0.00036164,16]
[406274755,1771681851840,-508.3037773,0.00036164,16]
[406274756,1771681851849,-500.0,0.00036164,16]
[406274757,1771681851857,-4230.99,0.00036164,16]
[406274758,1771681851866,-704.41,0.00036164,16]
[406274759,1771681851876,-402.24820059,0.00036164,16]
[406274760,1771681851885,-500.0,0.00036164,16]
[406274761,1771681851895,-500.0,0.00036164,16]
[406274762,1771681851905,-500.0,0.00036164,16]
[406274763,1771681851914,-500.0,0.00036164,2]
[406274764,1771681851923,-500.0,0.00036164,16]
[406274765,1771681851932,-529.38742671,0.00036164,16]
[406274766,1771681851942,-4852.45,0.00036164,16]
[406274767,1771681851953,-1000.0,0.00036164,2]
[406274768,1771681851963,-679.75,0.00036164,16]
[406274769,1771681851973,-500.0,0.00036164,16]
[406274770,1771681851983,-650.82,0.00036164,16]
[406274771,1771681851993,-500.0,0.00036164,16]
[406274772,1771681852004,-500.74329465,0.00036164,16]
[406274773,1771681852014,-500.0,0.00036164,16]
[406274774,1771681852025,-505.45676214,0.00036164,16]
[406274775,1771681852034,-500.0,0.00036164,16]
[406274776,1771681852044,-500.0,0.00036164,16]
[406274777,1771681852054,-500.0,0.00036164,16]
[406274778,1771681852064,-577.29270863,0.00036164,16]
[406274779,1771681852073,-500.0,0.00036164,16]
[406274780,1771681852083,-549.1227191,0.00036164,16]
[406274781,1771681852092,-521.07948534,0.00036164,16]
[406274782,1771681852101,-500.0,0.00036164,16]
[406274783,1771681852110,-539.27167702,0.00036164,16]
[406274784,1771681852120,-500.0,0.00036164,16]
[406274785,1771681852129,-13650.31,0.00036164,16]
[406274786,1771681852139,-1664.32,0.00036164,2]
[406274787,1771681852148,-725.93,0.000364,30]
[406274788,1771681852157,-509.62619993,0.00036438,16]
[406274789,1771681852167,-500.0,0.00036438,16]
[406274790,1771681852176,-1000.0,0.00036438,2]
[406274791,1771681852185,-500.0,0.00036438,16]
[406274792,1771681852194,-1729.05,0.00036438,16]
[406274793,1771681852203,-312.03027748,0.00036438,16]
[406274794,1771681852214,-500.0,0.00036438,16]
[406274795,1771681852223,-1107.06,0.00036438,16]
[406274796,1771681852233,-500.0,0.00036438,2]
[406274797,1771681852242,-501.63586466,0.00036438,16]
[406274798,1771681852251,-500.71790659,0.00036438,16]
[406274799,1771681852260,-500.0,0.00036438,16]
[406274800,1771681852270,-503.60015401,0.00036438,16]
[406274801,1771681852278,-532.60945927,0.00036438,16]
[406274802,1771681852287,-500.0,0.00036438,16]
[406274803,1771681852296,-500.0,0.00036438,16]
[406274804,1771681852305,-1504.3,0.00036438,7]
[406274805,1771681852314,-500.0,0.00036438,16]
[406274806,1771681852323,-500.0,0.00036438,16]
[406274807,1771681852332,-193.05742881,0.00036438,16]
[406274808,1771681852341,-500.0,0.00036438,16]
[406274809,1771681852351,-500.0,0.00036438,16]
[406274810,1771681852362,-500.0,0.00036438,16]
[406274811,1771681852372,-992.89,0.00036438,16]
[406274812,1771681852381,-259.25748861,0.00036438,16]
[406274813,1771681852391,-523.96406715,0.00036438,16]
[406274814,1771681852402,-500.0,0.00036438,16]
[406274815,1771681852413,-500.0,0.00036438,16]
[406274816,1771681852425,-377.19546143,0.00036438,16]
[406274817,1771681852444,-238.81929391,0.00036438,16]
[406274818,1771681852454,-4978.17,0.00036438,16]
[406274819,1771681852466,-1924.96,0.00036438,16]
[406274820,1771681852475,-500.0,0.00036438,16]
[406274821,1771681852484,-4230.99,0.00036438,16]
[406274822,1771681852493,-704.41,0.00036438,16]
[406274823,1771681852502,-500.0,0.00036438,16]
[406274824,1771681852511,-500.0,0.00036438,16]
[406274825,1771681852521,-546.44340226,0.00036438,16]
[406274826,1771681852530,-500.0,0.00036438,2]
[406274827,1771681852541,-509.73086454,0.00036438,16]
[406274828,1771681852552,-4852.45,0.00036438,16]
[406274829,1771681852562,-1000.0,0.00036438,2]
[406274830,1771681852572,-679.75,0.00036438,16]
[406274831,1771681852582,-500.0,0.00036438,16]
[406274832,1771681852591,-650.82,0.00036438,16]
[406274833,1771681852602,-500.0,0.00036438,16]
[406274834,1771681852613,-550.06382824,0.00036438,16]
[406274835,1771681852622,-510.94450473,0.00036438,16]
[406274836,1771681852632,-500.0,0.00036438,16]
[406274837,1771681852644,-532.52001499,0.00036438,16]
[406274838,1771681852654,-500.0,0.00036438,16]
[406274839,1771681852664,-573.86657263,0.00036438,16]
[406274840,1771681852676,-500.0,0.00036438,16]
[406274841,1771681852753,-13650.31,0.00036438,16]
[406274842,1771681852763,-1664.32,0.00036438,2]
[406274843,1771681852772,-7437.00050626,0.00036588,14]
[406274844,1771681852780,-149296.19,0.000366,14]
[406274845,1771681852790,-2000.0,0.00036603,2]
[406274846,1771681852799,-216.63563545,0.00036712,16]
[406274847,1771681852808,-1006.79797606,0.00036712,2]
[406274848,1771681852816,-505.02312367,0.00036712,16]
[406274849,1771681852825,-1729.05,0.00036712,16]
[406274850,1771681852834,-198.36,0.00036712,16]
[406274851,1771681852843,-1107.06,0.00036712,16]
[406274852,1771681852852,-500.0,0.00036712,2]
[406274853,1771681852862,-500.0,0.00036712,16]
[406274854,1771681852870,-500.0,0.00036712,16]
[406274855,1771681852879,-509.35304896,0.00036712,16]
[406274856,1771681852887,-1504.3,0.00036712,7]
[406274857,1771681852896,-500.0,0.00036712,16]
[406274858,1771681852905,-500.0,0.00036712,16]
[406274859,1771681852914,-500.0,0.00036712,16]
[406274860,1771681852923,-214.51343764,0.00036712,16]
[406274861,1771681852932,-500.0,0.00036712,16]
[406274862,1771681852942,-992.89,0.00036712,16]
[406274863,1771681852951,-167.6760678,0.00036712,16]
[406274864,1771681852960,-500.0,0.00036712,16]
[406274865,1771681852970,-4978.17,0.00036712,16]
[406274866,1771681852980,-1924.96,0.00036712,16]
[406274867,1771681852989,-500.0,0.00036712,16]
[406274868,1771681852998,-4230.99,0.00036712,16]
[406274869,1771681853007,-704.41,0.00036712,16]
[406274870,1771681853016,-500.0,0.00036712,16]
[406274871,1771681853025,-531.11426305,0.00036712,16]
[406274872,1771681853034,-500.0,0.00036712,2]
[406274873,1771681853044,-4852.45,0.00036712,16]
[406274874,1771681853053,-1000.0,0.00036712,2]
[406274875,1771681853063,-679.75,0.00036712,16]
[406274876,1771681853072,-500.0,0.00036712,16]
[406274877,1771681853081,-650.82,0.00036712,16]
[406274878,1771681853091,-524.27260484,0.00036712,16]
[406274879,1771681853100,-520.93237362,0.00036712,16]
[406274880,1771681853109,-500.0,0.00036712,16]
[406274881,1771681853119,-466.19906851,0.00036712,16]
[406274882,1771681853128,-13650.31,0.00036712,16]
[406274883,1771681853138,-1664.32,0.00036712,2]
[406274884,1771681853147,-1729.05,0.00036986,16]
[406274885,1771681853156,-1107.06,0.00036986,16]
[406274886,1771681853165,-500.0,0.00036986,2]
[406274887,1771681853175,-500.0,0.00036986,16]
[406274888,1771681853184,-517.88862451,0.00036986,16]
[406274889,1771681853193,-1504.3,0.00036986,7]
[406274890,1771681853202,-500.0,0.00036986,16]
[406274891,1771681853211,-367.53704288,0.00036986,16]
[406274892,1771681853221,-500.0,0.00036986,16]
[406274893,1771681853230,-500.0,0.00036986,16]
[406274894,1771681853240,-992.89,0.00036986,16]
[406274895,1771681853250,-500.0,0.00036986,16]
[406274896,1771681853260,-4978.17,0.00036986,16]
[406274897,1771681853269,-1924.96,0.00036986,16]
[406274898,1771681853278,-500.0,0.00036986,16]
[406274899,1771681853287,-4230.99,0.00036986,16]
[406274900,1771681853297,-704.41,0.00036986,16]
[406274901,1771681853306,-500.0,0.00036986,16]
[406274902,1771681853316,-500.0,0.00036986,2]
[406274903,1771681853327,-4852.45,0.00036986,16]
[406274904,1771681853336,-1003.47231905,0.00036986,2]
[406274905,1771681853346,-679.75,0.00036986,16]
[406274906,1771681853355,-500.0,0.00036986,16]
[406274907,1771681853365,-650.82,0.00036986,16]
[406274908,1771681853374,-500.0,0.00036986,16]
[406274909,1771681853383,-13650.31,0.00036986,16]
[406274910,1771681853392,-1664.32,0.00036986,2]
[406274911,1771681853402,-165.31,0.000372,7]
[406274912,1771681853412,-1729.05,0.0003726,16]
[406274913,1771681853422,-1107.06,0.0003726,16]
[406274914,1771681853432,-543.19595362,0.0003726,2]
[406274915,1771681853442,-500.0,0.0003726,16]
[406274916,1771681853453,-1504.3,0.0003726,7]
[406274917,1771681853465,-500.0,0.0003726,16]
[406274918,1771681853475,-611.08353964,0.0003726,16]
[406274919,1771681853486,-500.0,0.0003726,16]
[406274920,1771681853496,-992.89,0.0003726,16]
[406274921,1771681853507,-500.0,0.0003726,16]
[406274922,1771681853517,-4978.17,0.0003726,16]
[406274923,1771681853526,-1924.96,0.0003726,16]
[406274924,1771681853536,-500.0,0.0003726,16]
[406274925,1771681853552,-4230.99,0.0003726,16]
[406274926,1771681853561,-704.41,0.0003726,16]
[406274927,1771681853571,-500.0,0.0003726,16]
[406274928,1771681853580,-500.0,0.0003726,2]
[406274929,1771681853590,-4852.45,0.0003726,16]
[406274930,1771681853600,-679.75,0.0003726,16]
[406274931,1771681853610,-500.0,0.0003726,16]
[406274932,1771681853619,-650.82,0.0003726,16]
[406274933,1771681853628,-500.0,0.0003726,16]
[406274934,1771681853637,-13650.31,0.0003726,16]
[406274935,1771681853647,-1664.32,0.0003726,2]
[406274936,1771681853656,-2744.34362765,0.00037267,2]
[406274937,1771681853666,-2000.0,0.00037333,7]
[406274938,1771681853675,-2429.74,0.000374,14]
[406274939,1771681853684,-1729.05,0.00037534,16]
[406274940,1771681853694,-1107.06,0.00037534,16]
[406274941,1771681853703,-500.0,0.00037534,16]
[406274942,1771681853712,-1504.3,0.00037534,7]
[406274943,1771681853721,-500.0,0.00037534,16]
[406274944,1771681853731,-500.0,0.00037534,16]
[406274945,1771681853741,-992.89,0.00037534,16]
[406274946,1771681853750,-500.0,0.00037534,16]
[406274947,1771681853760,-4978.17,0.00037534,16]
[406274948,1771681853769,-1924.96,0.00037534,16]
[406274949,1771681853779,-500.0,0.00037534,16]
[406274950,1771681853788,-4230.99,0.00037534,16]
[406274951,1771681853798,-704.41,0.00037534,16]
[406274952,1771681853807,-500.0,0.00037534,16]
[406274953,1771681853817,-500.0,0.00037534,2]
[406274954,1771681853827,-4852.45,0.00037534,16]
[406274955,1771681853837,-679.75,0.00037534,16]
[406274956,1771681853847,-500.0,0.00037534,16]
[406274957,1771681853856,-650.82,0.00037534,16]
[406274958,1771681853866,-500.0,0.00037534,16]
[406274959,1771681853875,-13650.31,0.00037534,16]
[406274960,1771681853885,-1664.32,0.00037534,2]
[406274961,1771681853894,-149296.19,0.000376,14]
[406274962,1771681853903,-725.93,0.000378,30]
[406274963,1771681853913,-1729.05,0.00037808,16]
[406274964,1771681853922,-1107.06,0.00037808,16]
[406274965,1771681853932,-500.0,0.00037808,16]
[406274966,1771681853941,-1504.3,0.00037808,7]
[406274967,1771681853951,-500.0,0.00037808,16]
[406274968,1771681853961,-500.0,0.00037808,16]
[406274969,1771681853971,-992.89,0.00037808,16]
[406274970,1771681853980,-500.0,0.00037808,16]
[406274971,1771681853990,-4978.17,0.00037808,16]
[406274972,1771681853999,-1924.96,0.00037808,16]
[406274973,1771681854009,-500.0,0.00037808,16]
[406274974,1771681854019,-4230.99,0.00037808,16]
[406274975,1771681854028,-704.41,0.00037808,16]
[406274976,1771681854037,-500.0,0.00037808,16]
[406274977,1771681854047,-500.0,0.00037808,2]
[406274978,1771681854056,-4852.45,0.00037808,16]
[406274979,1771681854066,-679.75,0.00037808,16]
[406274980,1771681854075,-500.0,0.00037808,16]
[406274981,1771681854085,-650.82,0.00037808,16]
[406274982,1771681854094,-500.0,0.00037808,16]
[406274983,1771681854104,-13650.31,0.00037808,16]
[406274984,1771681854113,-1664.32,0.00037808,2]
[406274985,1771681854123,-2273022.4927,0.00037996,2]
[406274986,1771681854133,-165.35728996,0.00038,120]
[406274987,1771681854142,-725.93,0.00038,30]
[406274988,1771681854152,-1729.05,0.00038082,16]
[406274989,1771681854162,-1107.06,0.00038082,16]
[406274990,1771681854171,-500.0,0.00038082,16]
[406274991,1771681854180,-1504.3,0.00038082,7]
[406274992,1771681854190,-500.0,0.00038082,16]
[406274993,1771681854199,-500.0,0.00038082,16]
[406274994,1771681854209,-992.89,0.00038082,16]
[406274995,1771681854219,-500.0,0.00038082,16]
[406274996,1771681854228,-4978.17,0.00038082,16]
[406274997,1771681854237,-1924.96,0.00038082,16]
[406274998,1771681854246,-500.0,0.00038082,16]
[406274999,1771681854256,-4230.99,0.00038082,16]
[406275000,1771681854265,-704.41,0.00038082,16]
[406275001,1771681854274,-500.0,0.00038082,16]
[406275002,1771681854284,-500.0,0.00038082,2]
[406275003,1771681854293,-4852.45,0.00038082,16]
[406275004,1771681854303,-679.75,0.00038082,16]
[406275005,1771681854312,-500.0,0.00038082,16]
[406275006,1771681854322,-650.82,0.00038082,16]
[406275007,1771681854331,-500.0,0.00038082,16]
[406275008,1771681854405,-13650.31,0.00038082,16]
[406275009,1771681854414,-1664.32,0.00038082,2]
[406275010,1771681854425,-8408.60057376,0.00038276,14]
[406275011,1771681854434,-100548.0,0.000383,20]
[406275012,1771681854443,-641.19308043,0.00038356,19]
[406275013,1771681854453,-604.49341441,0.00038356,19]
[406275014,1771681854465,-1729.05,0.00038356,16]
[406275015,1771681854474,-1107.06,0.00038356,16]
[406275016,1771681854484,-474.34600294,0.00038356,16]
[406275017,1771681854493,-1504.3,0.00038356,7]
[406275018,1771681854503,-500.0,0.00038356,16]
[406275019,1771681854513,-286.03450362,0.00038356,16]
[406275020,1771681854523,-992.89,0.00038356,16]
[406275021,1771681854535,-412.44403436,0.00038356,16]
[406275022,1771681854545,-4978.17,0.00038356,16]
[406275023,1771681854554,-1514.42,0.00038356,120]
[406275024,1771681854563,-1924.96,0.00038356,16]
[406275025,1771681854572,-500.0,0.00038356,16]
[406275026,1771681854581,-4230.99,0.00038356,16]
[406275027,1771681854591,-704.41,0.00038356,16]
[406275028,1771681854600,-500.0,0.00038356,16]
[406275029,1771681854609,-355.96407138,0.00038356,2]
[406275030,1771681854618,-4852.45,0.00038356,16]
[406275031,1771681854628,-679.75,0.00038356,16]
[406275032,1771681854637,-500.0,0.00038356,16]
[406275033,1771681854646,-650.82,0.00038356,16]
[406275034,1771681854655,-500.0,0.00038356,16]
[406275035,1771681854664,-13650.31,0.00038356,16]
[406275036,1771681854673,-1664.32,0.00038356,2]
[406275037,1771681854682,-301.147484,0.00038356,7]
[406275038,1771681854691,-301.147484,0.00038356,7]
[406275039,1771681854700,-301.147484,0.00038356,7]
[406275040,1771681854710,-301.147484,0.00038356,7]
[406275041,1771681854718,-301.147484,0.00038356,7]
[406275042,1771681854728,-301.147484,0.00038356,7]
[406275043,1771681854737,-301.147484,0.00038356,7]
[406275044,1771681854747,-301.147484,0.00038356,7]
[406275045,1771681854756,-301.147484,0.00038356,7]
[406275046,1771681854765,-301.147484,0.00038356,7]
[406275047,1771681854774,-301.147484,0.00038356,7]
[406275048,1771681854784,-301.147484,0.00038356,7]
[406275049,1771681854793,-301.147484,0.00038356,7]
[406275050,1771681854802,-301.147484,0.00038356,7]
[406275051,1771681854811,-301.147484,0.00038356,7]
[406275052,1771681854820,-301.147484,0.00038356,7]
[406275053,1771681854830,-301.147484,0.00038356,7]
[406275054,1771681854839,-301.147484,0.00038356,7]
[406275055,1771681854848,-301.147484,0.00038356,7]
[406275056,1771681854857,-301.147491,0.00038356,7]
[406275057,1771681854866,-151.0,0.00038356,120]
[406275058,1771681854875,-151.0,0.00038356,120]
[406275059,1771681854886,-151.0,0.00038356,120]
[406275060,1771681854895,-267.54605,0.00038356,120]
[406275061,1771681854904,-151.0,0.00038356,2]
[406275062,1771681854913,-151.0,0.00038356,2]
[406275063,1771681854922,-151.0,0.00038356,2]
[406275064,1771681854931,-151.0,0.00038356,2]
[406275065,1771681854940,-180.91069,0.00038356,2]
[406275066,1771681854949,-185.511158,0.00038356,120]
[406275067,1771681854958,-700.168956,0.00038356,120]
[406275068,1771681854967,-700.168956,0.00038356,120]
[406275069,1771681854977,-700.168956,0.00038356,120]
[406275070,1771681854986,-700.168956,0.00038356,120]
[406275071,1771681854995,-700.168956,0.00038356,120]
[406275072,1771681855005,-700.168956,0.00038356,120]
[406275073,1771681855014,-700.168956,0.00038356,120]
[406275074,1771681855023,-700.168956,0.00038356,120]
[406275075,1771681855032,-700.168956,0.00038356,120]
[406275076,1771681855042,-700.168956,0.00038356,120]
[406275077,1771681855052,-700.168956,0.00038356,120]
[406275078,1771681855061,-700.168956,0.00038356,120]
[406275079,1771681855071,-700.168956,0.00038356,120]
[406275080,1771681855079,-700.168956,0.00038356,120]
[406275081,1771681855088,-700.168956,0.00038356,120]
[406275082,1771681855098,-700.168956,0.00038356,120]
[406275083,1771681855110,-700.168956,0.00038356,120]
[406275084,1771681855120,-700.168956,0.00038356,120]
[406275085,1771681855130,-700.168956,0.00038356,120]
[406275086,1771681855140,-700.168946,0.00038356,120]
[406275087,1771681855149,-151.0,0.00038356,3]
[406275088,1771681855159,-151.0,0.00038356,3]
[406275089,1771681855170,-151.0,0.00038356,3]
[406275090,1771681855180,-151.0,0.00038356,3]
[406275091,1771681855190,-151.0,0.00038356,3]
[406275092,1771681855200,-286.241683,0.00038356,3]
[406275093,1771681855211,-151.0,0.00038356,120]
[406275094,1771681855221,-151.0,0.00038356,120]
[406275095,1771681855231,-151.0,0.00038356,120]
[406275096,1771681855241,-151.0,0.00038356,120]
[406275097,1771681855250,-151.0,0.00038356,120]
[406275098,1771681855260,-151.0,0.00038356,120]
[406275099,1771681855269,-151.0,0.00038356,120]
[406275100,1771681855278,-151.0,0.00038356,120]
[406275101,1771681855287,-170.177506,0.00038356,120]
[406275102,1771681855296,-275.623654,0.00038356,120]
[406275103,1771681855305,-275.623654,0.00038356,120]
[406275104,1771681855314,-275.623654,0.00038356,120]
[406275105,1771681855323,-275.623654,0.00038356,120]
[406275106,1771681855332,-275.623654,0.00038356,120]
[406275107,1771681855341,-275.623654,0.00038356,120]
[406275108,1771681855350,-275.623654,0.00038356,120]
[406275109,1771681855359,-275.623654,0.00038356,120]
[406275110,1771681855368,-275.623654,0.00038356,120]
[406275111,1771681855377,-275.623654,0.00038356,120]
[406275112,1771681855386,-275.623654,0.00038356,120]
[406275113,1771681855395,-275.623654,0.00038356,120]
[406275114,1771681855404,-275.623654,0.00038356,120]
[406275115,1771681855415,-275.623654,0.00038356,120]
[406275116,1771681855425,-275.623654,0.00038356,120]
[406275117,1771681855434,-275.623654,0.00038356,120]
[406275118,1771681855443,-275.623654,0.00038356,120]
[406275119,1771681855453,-275.623654,0.00038356,120]
[406275120,1771681855465,-275.623654,0.00038356,120]
[406275121,1771681855474,-275.623663,0.00038356,120]
[406275122,1771681855484,-151.111641,0.00038356,2]
[406275123,1771681855493,-394.62511,0.00038356,120]
[406275124,1771681855505,-394.62511,0.00038356,120]
[406275125,1771681855515,-394.62511,0.00038356,120]
[406275126,1771681855525,-394.62511,0.00038356,120]
[406275127,1771681855537,-394.62511,0.00038356,120]
[406275128,1771681855549,-394.62511,0.00038356,120]
[406275129,1771681855568,-394.62511,0.00038356,120]
[406275130,1771681855579,-394.62511,0.00038356,120]
[406275131,1771681855588,-394.62511,0.00038356,120]
[406275132,1771681855598,-394.62511,0.00038356,120]
[406275133,1771681855608,-394.62511,0.00038356,120]
[406275134,1771681855617,-394.62511,0.00038356,120]
[406275135,1771681855628,-394.62511,0.00038356,120]
[406275136,1771681855638,-394.62511,0.00038356,120]
[406275137,1771681855649,-394.62511,0.00038356,120]
[406275138,1771681855660,-394.62511,0.00038356,120]
[406275139,1771681855669,-394.62511,0.00038356,120]
[406275140,1771681855679,-394.62511,0.00038356,120]
[406275141,1771681855688,-394.62511,0.00038356,120]
[406275142,1771681855698,-394.625111,0.00038356,120]
[406275143,1771681855707,-151.0,0.00038356,7]
[406275144,1771681855717,-151.0,0.00038356,7]
[406275145,1771681855726,-151.0,0.00038356,7]
[406275146,1771681855735,-151.0,0.00038356,7]
[406275147,1771681855745,-151.0,0.00038356,7]
[406275148,1771681855755,-151.0,0.00038356,7]
[406275149,1771681855764,-151.0,0.00038356,7]
[406275150,1771681855775,-221.313171,0.00038356,7]
[406275151,1771681855784,-478.7,0.00038356,7]
[406275152,1771681855794,-478.7,0.00038356,7]
[406275153,1771681855804,-478.7,0.00038356,7]
[406275154,1771681855813,-478.7,0.00038356,7]
[406275155,1771681855822,-478.7,0.00038356,7]
[406275156,1771681855832,-478.7,0.00038356,7]
[406275157,1771681855842,-478.7,0.00038356,7]
[406275158,1771681855851,-478.7,0.00038356,7]
[406275159,1771681855861,-478.7,0.00038356,7]
[406275160,1771681855871,-478.7,0.00038356,7]
[406275161,1771681855880,-478.7,0.00038356,7]
[406275162,1771681855889,-478.7,0.00038356,7]
[406275163,1771681855991,-478.7,0.00038356,7]
[406275164,1771681856000,-478.7,0.00038356,7]
[406275165,1771681856010,-478.7,0.00038356,7]
[406275166,1771681856018,-478.7,0.00038356,7]
[406275167,1771681856028,-478.7,0.00038356,7]
[406275168,1771681856038,-478.7,0.00038356,7]
[406275169,1771681856048,-478.7,0.00038356,7]
[406275170,1771681856058,-478.7,0.00038356,7]
[406275171,1771681856067,-375.295082,0.00038356,60]
[406275172,1771681856076,-375.295082,0.00038356,60]
[406275173,1771681856085,-375.295082,0.00038356,60]
[406275174,1771681856094,-375.295082,0.00038356,60]
[406275175,1771681856104,-375.295082,0.00038356,60]
[406275176,1771681856114,-375.295082,0.00038356,60]
[406275177,1771681856124,-375.295082,0.00038356,60]
[406275178,1771681856133,-375.295082,0.00038356,60]
[406275179,1771681856142,-375.295082,0.00038356,60]
[406275180,1771681856152,-375.295082,0.00038356,60]
[406275181,1771681856161,-375.295082,0.00038356,60]
[406275182,1771681856170,-375.295082,0.00038356,60]
[406275183,1771681856178,-375.295082,0.00038356,60]
[406275184,1771681856188,-375.295082,0.00038356,60]
[406275185,1771681856196,-375.295082,0.00038356,60]
[406275186,1771681856205,-375.295082,0.00038356,60]
[406275187,1771681856214,-375.295082,0.00038356,60]
[406275188,1771681856224,-375.295082,0.00038356,60]
[406275189,1771681856233,-375.295082,0.00038356,60]
[406275190,1771681856241,-375.29508,0.00038356,60]
[406275191,1771681856252,-3258.7121812,0.00038469,2]
[406275192,1771681856261,-2875742.72766641,0.0003861,4]
[406275193,1771681856271,-298.75,0.00038619,60]
[406275194,1771681856280,-1729.05,0.0003863,16]
[406275195,1771681856291,-1107.06,0.0003863,16]
[406275196,1771681856301,-1504.3,0.0003863,7]
[406275197,1771681856312,-504.81981135,0.0003863,16]
[406275198,1771681856322,-992.89,0.0003863,16]
[406275199,1771681856333,-4978.17,0.0003863,16]
[406275200,1771681856343,-1924.96,0.0003863,16]
[406275201,1771681856353,-500.0,0.0003863,16]
[406275202,1771681856363,-4230.99,0.0003863,16]
[406275203,1771681856373,-704.41,0.0003863,16]
[406275204,1771681856383,-500.0,0.0003863,16]
[406275205,1771681856392,-4852.45,0.0003863,16]
[406275206,1771681856401,-679.75,0.0003863,16]
[406275207,1771681856411,-500.0,0.0003863,16]
[406275208,1771681856420,-650.82,0.0003863,16]